bitfinex/quotes_ETHUSD_20240607
["timestamp","ask_amount","ask_price","bid_price","bid_amount"]
[1717776543258,2.63474,3795.5,3794.8,0.04184706]
[1717776545958,3.35174,3795.5,3794.8,0.04184706]
[1717776546470,0.717,3795.5,3794.9,2.63507]
[1717776546769,2.6345,3795.8,3794.9,0.717]
[1717776547071,0.717,3796.0,3795.1,2.63492]
[1717776547647,0.717,3796.0,3795.2,0.04171898]
[1717776547831,2.63432,3796.1,3795.3,2.63482]
[1717776548030,2.63432,3796.1,3795.4,0.04164295]
[1717776551867,2.63469,3795.5,3795.4,0.04164295]
[1717776552065,3.127229,3795.5,3794.6,2.63527]
[1717776552385,3.127229,3795.5,3794.7,0.04191906]
[1717776552386,2.63469,3795.5,3794.7,0.04191906]
[1717776552572,2.63486,3795.3,3794.7,0.04191906]
[1717776558852,2.3072,3796.3,3795.0,4.9389]
[1717776559088,2.63444,3795.9,3795.0,2.3039]
[1717776559270,2.63444,3795.9,3795.2,2.63487]
[1717776559661,2.63444,3795.9,3795.3,0.04181886]
[1717776559883,2.63426,3796.2,3795.4,2.63474]
[1717776560191,2.63426,3796.2,3795.6,2.6346]
[1717776560606,2.63426,3796.2,3795.7,0.04166683]
[1717776561090,2.63405,3796.5,3795.7,0.04166683]
[1717776563476,2.63416,3796.3,3795.7,0.04166683]
[1717776571994,0.716,3796.1,3795.7,0.04166683]
[1717776573550,0.008,3797.2,3795.8,4.92247]
[1717776573826,2.63355,3797.2,3796.5,2.288]
[1717776574112,2.63355,3797.2,3796.6,0.041117]
[1717776575581,3.34955,3797.2,3796.6,0.041117]
[1717776575917,2.63355,3797.2,3796.6,0.041117]
[1717776576213,2.63355,3797.2,3796.5,2.288]
[1717776576411,2.63355,3797.2,3796.5,2.780202]
[1717776576615,2.63355,3797.2,3796.6,0.041117]
[1717776588449,2.63355,3797.2,3796.6,2.675027]
[1717776589510,2.63355,3797.2,3796.7,2.321]
[1717776589741,2.63355,3797.2,3796.8,0.04073731]
[1717776589974,2.63355,3797.2,3796.9,0.49956473]
[1717776590147,2.63355,3797.2,3796.9,0.54026406]
[1717776592055,2.63355,3797.2,3796.9,0.04069933]
[1717776592455,2.63355,3797.2,3796.6,2.63391]
[1717776592948,2.63355,3797.2,3796.7,0.04072936]
[1717776598047,3.34955,3797.2,3796.7,0.04072936]
[1717776600172,2.6337,3797.0,3796.7,0.04072936]
[1717776600358,2.63399,3796.6,3796.0,2.63429]
[1717776600568,0.716,3796.5,3796.0,2.63429]
[1717776600870,3.34975,3796.9,3796.0,2.63429]
[1717776601245,2.64136,3797.5,3796.4,2.63405]
[1717776601246,2.63357,3797.2,3796.4,2.63405]
[1717776601451,2.63357,3797.2,3796.6,2.3675]
[1717776601759,2.63357,3797.2,3796.6,3.0835]
[1717776601961,2.63357,3797.2,3796.6,5.71741]
[1717776602339,2.63357,3797.2,3796.6,5.00141]
[1717776602681,2.63357,3797.2,3796.6,2.3675]
[1717776603175,2.63357,3797.2,3796.7,0.03940466]
[1717776605364,2.63368,3797.0,3796.7,0.03940466]
[1717776605571,2.63368,3797.0,3796.3,2.294]
[1717776605742,2.63368,3797.0,3796.8,0.03932473]
[1717776605942,2.63368,3797.0,3796.3,2.294]
[1717776606284,2.63368,3797.0,3796.9,0.03928475]
[1717776606487,2.63368,3797.0,3796.4,2.63403]
[1717776606651,3.34968,3797.0,3796.9,0.03928475]
[1717776606852,3.34968,3797.0,3796.4,2.63403]
[1717776607084,3.34968,3797.0,3796.9,0.03928475]
[1717776607306,3.34968,3797.0,3796.5,0.492803]
[1717776607797,3.34968,3797.0,3796.6,0.0393987]
[1717776608825,0.716,3796.8,3796.6,0.0393987]
[1717776609102,0.716,3796.8,3796.3,2.294]
[1717776609266,0.716,3796.8,3796.7,0.03936471]
[1717776609803,0.716,3796.8,3796.4,0.492823]
[1717776610036,0.716,3796.8,3796.7,0.03936471]
[1717776610167,0.716,3796.8,3796.4,0.492823]
[1717776610513,0.716,3796.8,3796.7,0.03936471]
[1717776610797,3.34982,3796.8,3796.7,0.03936471]
[1717776611022,3.34982,3796.8,3796.1,2.63423]
[1717776611197,3.34982,3796.8,3796.7,0.03936471]
[1717776611399,3.34982,3796.8,3796.1,2.63423]
[1717776611586,3.34982,3796.8,3796.7,0.03936471]
[1717776611771,2.63395,3796.6,3796.1,2.63423]
[1717776611963,3.34995,3796.6,3796.1,2.63423]
[1717776612165,3.34995,3796.6,3796.1,3.137603]
[1717776612686,2.63395,3796.6,3796.1,3.137603]
[1717776616518,0.716,3796.7,3796.1,3.137603]
[1717776617580,2.63378,3796.9,3796.1,3.137603]
[1717776617782,0.716,3796.7,3796.1,3.137603]
[1717776617975,2.63378,3796.9,3796.2,0.5537103]
[1717776618185,2.63378,3796.9,3796.2,0.59333089]
[1717776618393,0.716,3796.8,3796.2,0.59333089]
[1717776619011,0.716,3796.8,3796.3,2.63414]
[1717776619314,2.6413,3797.6,3796.5,2.63397]
[1717776619315,2.63356,3797.2,3796.5,2.63397]
[1717776619513,3.34956,3797.2,3796.5,3.26759948]
[1717776619699,3.34956,3797.2,3796.6,0.03950059]
[1717776622031,0.716,3797.0,3796.6,0.03950059]
[1717776622192,0.716,3797.1,3796.7,0.33071001]
[1717776622393,0.716,3797.1,3796.7,0.37017261]
[1717776625531,2.63366,3797.0,3796.7,0.37017261]
[1717776627302,2.63366,3797.0,3796.7,0.0394626]
[1717776627601,2.63366,3797.0,3796.5,3.26759948]
[1717776627803,2.63366,3797.0,3796.8,0.03938265]
[1717776628142,2.63366,3797.0,3796.9,0.03934467]
[1717776628346,2.63366,3797.0,3796.5,3.26759948]
[1717776628494,2.63366,3797.0,3796.9,0.03934467]
[1717776628698,2.63366,3797.0,3796.5,2.63397]
[1717776628911,2.63366,3797.0,3796.6,0.03945862]
[1717776631852,2.63366,3797.0,3796.6,0.06653472]
[1717776633926,0.716,3796.7,3796.6,0.06653472]
[1717776634151,0.716,3796.7,3796.1,2.63428]
[1717776634458,0.716,3796.5,3796.1,2.63428]
[1717776634654,0.716,3796.7,3796.1,2.63428]
[1717776634820,0.716,3796.7,3796.2,0.506728]
[1717776636464,2.6338,3796.8,3796.2,0.506728]
[1717776636617,3.3498,3796.8,3796.2,0.506728]
[1717776637658,0.716,3796.6,3796.2,0.506728]
[1717776639550,2.6338,3796.8,3796.3,0.5574008]
[1717776639732,3.3498,3796.8,3796.3,0.5574008]
[1717776640157,3.3498,3796.8,3796.1,2.63428]
[1717776642147,2.6338,3796.8,3796.1,2.63428]
[1717776642489,3.1665,3796.7,3796.1,2.63428]
[1717776644695,2.63409,3796.4,3795.8,2.63447]
[1717776645249,0.716,3796.5,3795.8,2.63447]
[1717776645471,0.716,3796.5,3795.9,0.563447]
[1717776645876,3.35038,3796.0,3795.3,2.41173184]
[1717776646060,0.716,3795.7,3795.3,2.4921]
[1717776646557,0.716,3795.7,3795.2,2.63488]
[1717776647553,0.716,3795.7,3795.0,2.4921]
[1717776647780,0.716,3795.7,3795.0,3.819416]
[1717776648058,0.716,3795.7,3795.0,2.4921]
[1717776648276,0.716,3795.7,3795.1,0.0595385]
[1717776649413,2.63465,3795.6,3795.1,0.0595385]
[1717776650170,2.63465,3795.6,3794.7,2.4434]
[1717776650497,0.716,3795.3,3795.2,0.05949977]
[1717776650804,0.716,3795.3,3794.5,2.63537]
[1717776650805,2.63492,3795.2,3794.5,2.63537]
[1717776650958,2.63492,3795.2,3794.6,3.0]
[1717776651424,2.63492,3795.2,3794.5,2.63537]
[1717776651555,2.63492,3795.2,3794.6,0.574967]
[1717776652781,0.716,3795.1,3794.6,0.574967]
[1717776653899,0.716,3794.9,3794.6,0.574967]
[1717776654199,0.716,3794.7,3794.2,2.63555]
[1717776655205,0.716,3794.7,3794.1,2.4102]
[1717776657599,0.716,3794.7,3794.0,3.0]
[1717776657771,0.716,3794.5,3793.9,2.63577]
[1717776657976,0.716,3794.5,3793.9,3.14990464]
[1717776659477,3.35133,3794.6,3793.9,3.14990464]
[1717776660287,2.63533,3794.6,3793.9,0.51413464]
[1717776660459,2.3518,3794.8,3793.6,0.0136764]
[1717776660460,0.716,3794.0,3793.6,0.0136764]
[1717776661099,0.716,3794.2,3793.6,0.0136764]
[1717776663402,0.716,3794.2,3793.7,0.05470995]
[1717776663603,0.716,3794.2,3793.7,0.32515258]
[1717776665304,3.35163,3794.2,3793.7,0.32515258]
[1717776668692,2.63519,3794.8,3793.7,0.32515258]
[1717776668693,2.63544,3794.5,3793.8,2.2838]
[1717776668917,2.63501,3795.1,3794.2,0.716]
[1717776669206,2.63501,3795.1,3794.3,5.07798743]
[1717776669407,2.63501,3795.1,3794.5,2.63537]
[1717776669612,0.716,3795.3,3794.5,2.63537]
[1717776669778,0.716,3795.3,3794.6,0.0543612]
[1717776669976,2.6348,3795.4,3794.6,0.0543612]
[1717776670224,2.6348,3795.4,3794.6,0.69167419]
[1717776670418,0.716,3795.5,3794.6,0.69167419]
[1717776670610,0.716,3795.5,3794.6,0.0543612]
[1717776670812,2.4439,3795.9,3794.7,0.716]
[1717776671113,2.63437,3796.0,3795.1,2.63494]
[1717776671282,3.35037,3796.0,3795.3,2.63477]
[1717776671489,2.63437,3796.0,3795.3,2.63477]
[1717776671690,0.716,3795.9,3795.3,2.63477]
[1717776672008,0.716,3795.9,3795.4,0.05428711]
[1717776672215,0.716,3795.9,3795.3,2.63477]
[1717776672393,0.716,3795.9,3795.5,0.05415446]
[1717776672568,0.716,3795.9,3795.3,2.63477]
[1717776672769,0.716,3795.9,3795.4,0.05419518]
[1717776673009,0.716,3795.9,3795.3,2.63477]
[1717776673187,0.716,3795.9,3795.5,0.05415646]
[1717776673512,0.716,3795.9,3795.3,2.63477]
[1717776673719,0.716,3795.9,3795.6,0.05386187]
[1717776673919,2.63416,3796.3,3795.3,2.63477]
[1717776674126,2.63416,3796.3,3795.7,0.05382315]
[1717776674311,4.056866,3796.3,3795.5,2.63464]
[1717776674511,4.056866,3796.3,3795.8,0.05378444]
[1717776674685,4.056866,3796.3,3795.5,2.63464]
[1717776675018,4.056866,3796.3,3795.7,2.63455]
[1717776675019,2.63416,3796.3,3795.7,2.63455]
[1717776675428,2.63416,3796.3,3795.8,0.05378444]
[1717776675628,2.63416,3796.3,3795.7,2.63455]
[1717776675923,2.63416,3796.3,3795.9,0.05374572]
[1717776676228,3.884966,3796.3,3795.7,2.63455]
[1717776676408,3.884966,3796.3,3796.0,0.05370701]
[1717776676586,3.884966,3796.3,3795.7,2.63455]
[1717776676777,3.884966,3796.3,3796.1,0.0536683]
[1717776676984,2.63431,3796.1,3795.3,2.63478]
[1717776678384,2.63431,3796.1,3795.4,0.05393932]
[1717776681290,2.63431,3796.1,3795.5,2.63469]
[1717776681503,5.07799,3796.4,3795.5,2.63469]
[1717776681704,5.07799,3796.4,3795.6,0.05386187]
[1717776682033,5.07799,3796.4,3795.5,2.63469]
[1717776682242,5.07799,3796.4,3795.7,0.05382315]
[1717776682396,5.07799,3796.4,3795.5,2.63469]
[1717776682742,5.07799,3796.4,3795.8,0.05378444]
[1717776682936,5.07799,3796.4,3795.5,2.63469]
[1717776683110,2.6339,3796.7,3795.8,2.63446]
[1717776683312,0.67834,3796.6,3795.8,2.63446]
[1717776683518,2.63401,3796.5,3795.8,2.63446]
[1717776691552,2.63416,3796.3,3795.5,2.63464]
[1717776691866,2.63373,3796.9,3795.6,0.05384788]
[1717776691867,2.4791,3796.5,3795.6,0.05384788]
[1717776692183,2.4791,3796.5,3794.5,7.43]
[1717776692184,2.4791,3795.8,3794.9,2.63507]
[1717776692458,5.11359,3795.8,3794.9,2.63507]
[1717776693967,0.716,3795.6,3794.9,2.63507]
[1717776694265,0.716,3795.6,3795.0,0.05417417]
[1717776695730,0.716,3795.6,3795.1,2.63497]
[1717776696039,0.716,3795.6,3795.2,0.05417867]
[1717776697657,0.716,3795.4,3795.2,0.05417867]
[1717776697859,0.716,3795.3,3794.8,2.63513]
[1717776698062,0.716,3795.0,3794.9,0.05429487]
[1717776698280,0.716,3795.2,3794.9,0.05429487]
[1717776699320,0.716,3795.1,3794.9,0.05429487]
[1717776701912,3.68606,3795.1,3794.9,0.05429487]
[1717776702059,2.3101,3795.0,3794.9,0.05429487]
[1717776702256,2.3101,3795.0,3793.0,7.43]
[1717776702257,2.3101,3795.0,3793.5,2.63607]
[1717776702493,0.716,3793.8,3793.7,0.0511358]
[1717776702854,0.716,3793.8,3793.5,2.63607]
[1717776703059,0.716,3793.8,3793.7,0.0511358]
[1717776703263,0.716,3793.8,3793.2,2.63626]
[1717776703470,0.716,3793.8,3793.7,0.0511358]
[1717776703905,2.63566,3794.2,3793.7,0.0511358]
[1717776704197,3.311966,3794.2,3793.7,0.0511358]
[1717776704406,2.63579,3794.0,3793.7,0.0511358]
[1717776707704,4.35679,3794.0,3793.7,0.0511358]
[1717776708699,4.35679,3794.0,3792.9,2.63648]
[1717776709104,2.63592,3793.8,3793.7,0.0511358]
[1717776709412,2.63592,3793.8,3792.9,2.63648]
[1717776709904,2.63592,3793.8,3793.7,0.0511358]
[1717776710213,2.63592,3793.8,3792.9,2.63648]
[1717776710690,2.63592,3793.8,3793.7,0.0511358]
[1717776710896,2.63592,3793.8,3792.9,2.63648]
[1717776711070,2.63592,3793.8,3793.7,0.0511358]
[1717776711266,2.63592,3793.8,3792.9,2.63648]
[1717776711470,2.63592,3793.8,3793.7,0.0511358]
[1717776711701,2.63592,3793.8,3792.9,2.63648]
[1717776712207,2.63592,3793.8,3793.7,0.0511358]
[1717776725078,2.63592,3793.8,3793.3,5.05231]
[1717776725278,2.63502,3795.1,3794.3,2.63548]
[1717776725520,2.63479,3795.4,3794.5,2.63537]
[1717776725730,2.63479,3795.4,3794.5,5.05147]
[1717776725940,2.63496,3795.2,3794.5,2.63537]
[1717776726080,2.63496,3795.2,3794.6,0.0513029]
[1717776726408,2.63496,3795.2,3794.2,2.63558]
[1717776726726,2.63496,3795.2,3794.3,0.492148]
[1717776727033,2.63496,3795.2,3794.3,0.54356713]
[1717776727394,2.63496,3795.2,3794.4,2.63546]
[1717776727794,2.63496,3795.2,3794.5,0.05134164]
[1717776733202,2.63472,3795.5,3794.8,2.63514]
[1717776733520,2.63472,3795.5,3794.9,0.31437074]
[1717776734411,2.63472,3795.5,3794.9,0.05085674]
[1717776734754,2.63472,3795.5,3794.8,2.63514]
[1717776736318,2.63472,3795.5,3794.9,0.05080676]
[1717776741966,0.717,3795.0,3794.9,0.05080676]
[1717776744039,2.63472,3795.5,3794.9,0.05080676]
[1717776744240,0.717,3795.2,3795.0,0.26859468]
[1717776744566,0.717,3795.2,3795.0,0.31764137]
[1717776744930,0.717,3795.2,3795.0,0.04904669]
[1717776745130,3.1212,3795.2,3794.5,2.63534]
[1717776745333,0.717,3794.9,3794.6,0.04919564]
[1717776750451,0.717,3795.3,3795.0,2.63498]
[1717776750782,0.717,3795.1,3795.0,2.63498]
[1717776751673,0.717,3795.1,3794.7,2.63521]
[1717776752951,0.717,3794.9,3794.7,2.63521]
[1717776753147,0.717,3795.0,3794.8,0.04911816]
[1717776755580,0.717,3795.2,3794.8,0.04911816]
[1717776755786,0.717,3795.0,3794.8,0.04911816]
[1717776764107,2.63486,3795.3,3794.8,0.04911816]
[1717776764313,3.35186,3795.3,3794.8,2.32221816]
[1717776765884,3.34894268,3795.3,3794.8,2.32221816]
[1717776766772,0.717,3795.3,3794.9,2.6351]
[1717776767103,0.717,3795.4,3795.1,2.63497]
[1717776767300,0.717,3795.3,3795.2,0.04902922]
[1717776768687,0.717,3795.5,3795.2,0.04902922]
[1717776769003,0.717,3795.3,3795.2,0.04902922]
[1717776770661,0.717,3795.3,3794.8,2.63512]
[1717776770862,0.717,3795.3,3794.8,3.131812]
[1717776771101,0.717,3795.3,3794.9,0.04907343]
[1717776780831,2.63463,3795.6,3794.9,0.04907343]
[1717776781157,0.717,3795.4,3794.9,0.04907343]
[1717776781331,0.717,3795.4,3795.0,2.63504]
[1717776781522,0.717,3795.4,3795.1,0.04900996]
[1717776783085,2.63463,3795.6,3795.1,0.04900996]
[1717776783358,0.717,3795.4,3795.1,0.04900996]
[1717776786732,2.63463,3795.6,3795.1,0.04900996]
[1717776787032,0.717,3795.4,3795.1,0.04900996]
[1717776790134,2.63463,3795.6,3795.1,0.04900996]
[1717776790479,2.63477,3795.4,3795.1,0.04900996]
[1717776790718,3.35177,3795.4,3795.1,0.04900996]
[1717776790869,3.35177,3795.4,3794.8,2.63512]
[1717776791069,3.35177,3795.4,3795.2,0.04896123]
[1717776791271,3.35177,3795.4,3794.8,2.63512]
[1717776791472,3.35177,3795.4,3795.3,0.0489225]
[1717776791671,3.35177,3795.4,3794.8,2.63512]
[1717776791913,3.35177,3795.4,3795.3,0.0489225]
[1717776792108,3.35177,3795.4,3794.8,2.63512]
[1717776792318,3.35177,3795.4,3795.3,0.0489225]
[1717776792475,3.35177,3795.4,3794.8,2.63512]
[1717776792676,5.09517,3795.4,3795.3,0.0489225]
[1717776793017,5.81217,3795.4,3795.3,0.0489265]
[1717776793175,5.81217,3795.4,3794.8,2.63512]
[1717776793376,2.4604,3795.4,3794.9,0.04908143]
[1717776793577,0.717,3795.0,3794.3,2.63553]
[1717776793820,0.717,3794.7,3794.4,0.04927513]
[1717776794212,2.63504,3795.1,3794.4,2.68466513]
[1717776794408,0.717,3794.9,3794.4,2.68466513]
[1717776799602,3.1816228,3795.0,3794.4,0.04927513]
[1717776799795,3.1816228,3795.0,3794.6,2.63531]
[1717776800011,3.1816228,3795.0,3794.8,2.63516]
[1717776800256,3.1816228,3795.0,3794.9,2.4264]
[1717776800532,3.1816228,3795.0,3794.9,2.47393532]
[1717776800891,3.0526228,3795.0,3794.9,2.47393532]
[1717776801113,3.0526228,3795.0,3794.9,3.05654485]
[1717776801529,3.0526228,3795.0,3794.9,3.77354485]
[1717776802029,2.63398,3796.6,3795.5,2.3797]
[1717776802236,2.63398,3796.6,3795.5,3.0967]
[1717776802382,0.717,3796.5,3795.6,0.04711831]
[1717776802728,0.717,3796.5,3796.0,2.63432]
[1717776803150,2.4321,3796.8,3796.1,0.04692474]
[1717776803430,0.717,3796.6,3796.1,0.04692474]
[1717776804829,2.63375,3796.9,3796.1,0.04692474]
[1717776805028,0.717,3796.5,3796.1,0.04692474]
[1717776807268,2.63375,3796.9,3796.2,2.63419]
[1717776807478,0.717,3796.6,3796.2,2.63419]
[1717776807687,2.63354,3797.2,3796.4,2.63406]
[1717776807975,2.63354,3797.2,3796.5,0.04645617]
[1717776808128,0.717,3796.9,3796.5,0.04645617]
[1717776810163,2.3548,3797.3,3796.6,2.63392]
[1717776810373,0.717,3796.8,3796.7,0.04637877]
[1717776812256,2.3548,3797.3,3796.7,0.04637877]
[1717776812457,0.717,3796.9,3796.7,0.04637877]
[1717776813900,2.3548,3797.3,3796.7,0.04637877]
[1717776814221,0.717,3796.9,3796.7,0.04637877]
[1717776817074,4.98828,3797.3,3796.7,0.04637877]
[1717776817315,0.717,3796.9,3796.7,0.04637877]
[1717776817492,0.717,3796.9,3796.7,0.31440865]
[1717776820309,0.717,3796.9,3796.7,0.04637877]
[1717776821275,0.717,3796.9,3796.3,2.6341]
[1717776821478,2.63362,3797.1,3796.8,0.04618625]
[1717776821704,0.717,3796.9,3796.3,2.6341]
[1717776821903,0.717,3796.4,3796.3,2.6341]
[1717776822124,0.717,3796.4,3796.3,2.92432245]
[1717776822320,2.63375,3796.9,3796.3,2.92432245]
[1717776822528,0.717,3796.5,3796.3,2.92432245]
[1717776824726,0.717,3796.5,3796.0,2.63429]
[1717776825038,0.717,3796.1,3796.0,2.63429]
[1717776825424,2.63388,3796.7,3796.0,2.63429]
[1717776825754,0.717,3796.2,3796.0,2.63429]
[1717776825943,0.717,3796.2,3796.0,3.17363718]
[1717776826996,0.717,3796.2,3796.0,2.63429]
[1717776827196,0.717,3796.2,3795.7,5.20639183]
[1717776827434,0.717,3796.0,3795.7,5.20639183]
[1717776828288,0.717,3796.0,3795.8,0.04665921]
[1717776842303,2.63378,3796.9,3795.8,0.04665921]
[1717776842512,0.717,3796.5,3796.2,5.00131]
[1717776842715,2.63357,3797.2,3796.5,2.63397]
[1717776842850,0.717,3796.7,3796.5,2.63397]
[1717776843193,0.717,3796.9,3796.6,0.04640148]
[1717776843765,0.717,3796.7,3796.6,0.04640148]
[1717776845477,0.717,3796.7,3796.2,2.63418]
[1717776845670,0.717,3796.4,3796.2,2.63418]
[1717776845875,0.717,3796.4,3796.2,3.139898]
[1717776847061,0.717,3796.6,3796.4,2.63403]
[1717776847282,0.717,3796.7,3796.4,2.63403]
[1717776847918,0.717,3796.5,3796.4,2.63403]
[1717776849919,2.3464,3797.0,3796.4,2.63403]
[1717776850123,0.717,3796.7,3796.4,2.63403]
[1717776850283,0.717,3796.7,3796.5,0.263403]
[1717776851199,2.63354,3797.2,3796.6,2.63393]
[1717776851396,0.717,3796.8,3796.6,2.63393]
[1717776855035,2.63354,3797.2,3796.6,2.63393]
[1717776855183,0.717,3796.9,3796.6,2.63393]
[1717776855388,0.717,3796.9,3796.7,0.5338933]
[1717776856355,0.717,3797.0,3796.7,0.5338933]
[1717776858339,0.717,3797.0,3796.8,0.04619625]
[1717776858712,2.63354,3797.2,3796.8,0.04619625]
[1717776858917,0.717,3797.0,3796.8,0.04619625]
[1717776859230,0.717,3797.0,3796.8,0.3939385]
[1717776860091,2.63336,3797.5,3796.8,0.3939385]
[1717776860418,0.717,3797.0,3796.8,0.34774225]
[1717776860730,0.717,3797.0,3796.9,0.04613088]
[1717776863545,0.717,3797.0,3796.6,2.63393]
[1717776863715,0.717,3796.7,3796.6,2.63393]
[1717776864242,0.717,3796.7,3796.6,2.94356998]
[1717776868817,0.717,3796.7,3796.6,0.30963998]
[1717776871046,4.9049,3797.1,3796.6,0.30963998]
[1717776871196,0.717,3796.8,3796.6,0.30963998]
[1717776875248,4.9049,3797.1,3796.6,0.30963998]
[1717776875405,0.717,3796.8,3796.6,0.30963998]
[1717776875605,0.717,3796.8,3796.7,0.294363]
[1717776875910,0.717,3796.8,3796.7,0.34059724]
[1717776878947,0.717,3796.8,3796.7,0.04623424]
[1717776879250,0.717,3796.8,3796.7,0.04437349]
[1717776879750,0.717,3796.8,3796.2,2.63415]
[1717776879918,4.9049,3797.1,3796.7,0.04437349]
[1717776880240,0.717,3796.8,3796.2,2.63415]
[1717776880446,0.717,3796.6,3796.3,0.496985]
[1717776881147,2.4174,3797.1,3795.5,1.58185208]
[1717776881307,0.717,3795.6,3795.5,1.58185208]
[1717776881641,0.717,3795.6,3794.8,2.3168]
[1717776881841,0.717,3795.3,3794.6,2.6353]
[1717776882002,0.717,3795.3,3794.7,0.49521]
[1717776883928,0.717,3795.3,3794.7,3.49521]
[1717776886154,2.63475,3795.5,3794.7,3.49521]
[1717776886365,0.717,3795.1,3794.7,3.49521]
[1717776886715,2.63475,3795.5,3794.7,3.49521]
[1717776886941,0.717,3795.2,3794.8,0.844731]
[1717776888317,0.717,3795.2,3794.9,0.03356137]
[1717776888623,2.63475,3795.5,3794.9,0.03356137]
[1717776888805,0.717,3795.3,3794.9,0.03356137]
[1717776890355,2.63475,3795.5,3794.9,0.03356137]
[1717776890552,0.717,3795.2,3794.9,0.03356137]
[1717776890761,0.717,3795.2,3794.9,0.73444161]
[1717776893352,0.717,3795.0,3794.9,0.73444161]
[1717776893545,0.717,3795.0,3794.9,0.03356137]
[1717776894821,0.717,3795.2,3794.9,0.03356137]
[1717776895781,0.717,3795.1,3794.9,0.03356137]
[1717776896318,2.63487,3795.3,3794.9,0.03356137]
[1717776896519,0.717,3795.0,3794.9,0.03356137]
[1717776897368,0.717,3795.0,3794.9,0.68492061]
[1717776898443,0.717,3795.0,3794.9,0.03356137]
[1717776898768,0.717,3795.0,3794.7,3.0]
[1717776899075,0.717,3795.0,3794.8,0.03382344]
[1717776900495,2.63487,3795.3,3794.8,2.66898344]
[1717776900633,0.717,3795.2,3794.8,2.66898344]
[1717776900832,0.717,3795.2,3794.9,0.56689834]
[1717776901076,0.717,3795.2,3795.0,0.03374597]
[1717776903166,0.717,3795.1,3795.0,0.03374597]
[1717776908493,4.92758,3795.4,3795.0,0.03374597]
[1717776908776,0.717,3795.2,3795.0,0.03374597]
[1717776909134,4.92758,3795.4,3795.0,0.03374597]
[1717776909335,0.717,3795.2,3795.0,0.03374597]
[1717776909801,4.92758,3795.4,3795.0,0.03374597]
[1717776909973,2.2928,3795.4,3795.0,3.2923464]
[1717776910157,3.0098,3795.4,3795.0,3.2923464]
[1717776910357,0.717,3795.2,3795.0,3.2923464]
[1717776911067,0.717,3795.2,3795.0,0.6573264]
[1717776911270,0.717,3795.2,3795.0,0.03374597]
[1717776911693,0.717,3795.2,3795.1,0.03330386]
[1717776912085,0.717,3795.2,3794.7,5.6352]
[1717776912299,0.717,3795.2,3794.8,0.03342006]
[1717776912799,0.717,3795.1,3794.8,0.03342006]
[1717776914198,3.1216,3794.9,3794.8,0.03342006]
[1717776914376,6.332401,3794.9,3794.2,7.68940125]
[1717776914576,0.717,3794.3,3794.2,7.68940125]
[1717776914757,0.717,3794.3,3794.2,0.25940125]
[1717776914959,0.717,3794.3,3794.1,2.63562]
[1717776916383,0.717,3794.5,3794.1,2.63562]
[1717776916589,0.717,3794.5,3794.2,0.263562]
[1717776918102,0.717,3794.5,3794.3,0.03181551]
[1717776923021,5.03974,3794.9,3794.3,2.66732551]
[1717776923221,0.717,3794.7,3794.3,2.66732551]
[1717776926226,0.717,3794.7,3794.3,2.16732551]
[1717776926523,0.717,3794.7,3794.4,0.02981982]
[1717776929143,5.03974,3794.9,3794.4,0.02981982]
[1717776929286,0.717,3794.8,3794.4,0.02981982]
[1717776929486,5.03974,3794.9,3794.4,0.02981982]
[1717776929487,0.717,3794.7,3794.4,0.02981982]
[1717776930231,5.03974,3794.9,3794.4,0.02981982]
[1717776930386,0.717,3794.7,3794.4,0.02981982]
[1717776939351,5.03974,3794.9,3794.4,0.02981982]
[1717776939645,0.717,3794.7,3794.4,0.02981982]
[1717776942611,0.717,3794.5,3794.4,0.02981982]
[1717776944928,0.717,3794.7,3794.4,0.02981982]
[1717776945357,3.35225,3794.7,3794.4,0.02981982]
[1717776945659,0.717,3794.5,3794.4,0.02981982]
[1717776945865,2.3089,3794.4,3794.0,2.63567]
[1717776946174,2.63557,3794.3,3793.7,2.63588]
[1717776946455,0.717,3794.2,3793.7,2.63588]
[1717776948168,0.717,3794.2,3793.8,0.02639877]
[1717776948693,0.717,3794.2,3793.7,2.63588]
[1717776948832,0.717,3794.2,3793.9,0.02636002]
[1717776949032,0.717,3794.2,3793.8,0.02639877]
[1717776949270,0.717,3794.2,3794.0,0.02632126]
[1717776949476,0.717,3794.2,3793.9,0.02636002]
[1717776949678,0.717,3794.2,3794.1,0.02628251]
[1717776949847,0.717,3794.2,3794.0,0.02632126]
[1717776950046,0.717,3794.2,3794.1,0.02628251]
[1717776950777,0.717,3794.2,3793.7,2.63588]
[1717776951068,0.717,3794.2,3794.1,0.02628251]
[1717776951547,0.717,3794.2,3793.7,2.63588]
[1717776951747,0.717,3794.2,3794.1,0.02628251]
[1717776951948,0.717,3794.2,3793.7,2.63588]
[1717776952151,0.717,3794.2,3794.1,0.02628251]
[1717776952358,0.717,3794.2,3793.7,2.63588]
[1717776952561,0.717,3794.2,3794.1,0.02628251]
[1717776952768,0.717,3794.2,3793.7,2.63588]
[1717776953102,5.0083,3794.7,3794.1,0.02628251]
[1717776953246,5.0083,3794.7,3793.9,2.63578]
[1717776953580,0.717,3794.6,3793.9,2.63578]
[1717776953744,0.717,3794.6,3794.1,2.63566]
[1717776954242,0.717,3794.6,3794.2,0.02631938]
[1717776954744,0.717,3794.5,3794.2,0.02631938]
[1717776955359,5.0083,3794.7,3794.2,0.02631938]
[1717776955561,0.717,3794.5,3794.2,0.02631938]
[1717776956969,0.717,3794.3,3794.2,0.02631938]